bitfinex-derivatives/quotes_ETHF0:USTF0_20250807
["timestamp","ask_amount","ask_price","bid_price","bid_amount"]
[1754586078542,0.9774,3819.6,3819.0,0.4281]
[1754586078747,41.3074,3819.8,3819.7,1.07175]
[1754586079041,42.2848,3819.8,3819.7,1.49985]
[1754586079241,40.8,3819.8,3819.7,2.04965]
[1754586079736,41.3288,3819.8,3819.7,2.04965]
[1754586079931,40.8,3819.8,3819.7,2.04965]
[1754586080134,0.5288,3820.3,3820.2,0.52339]
[1754586080339,1.956,3821.0,3820.9,1.07159]
[1754586080540,1.4486,3821.0,3820.9,1.49969]
[1754586080747,1.0,3821.0,3820.9,2.04949]
[1754586080936,0.9774,3820.9,3820.4,0.5483]
[1754586081143,40.8,3820.8,3820.6,0.52333]
[1754586081343,1.4848,3820.7,3820.6,0.52332]
[1754586081944,40.8,3820.8,3820.7,1.5262]
[1754586082344,1.0,3821.0,3820.8,0.5233]
[1754586082538,1.0,3821.0,3820.9,1.5262]
[1754586082844,41.8,3821.0,3820.9,1.5262]
[1754586086047,42.3288,3821.0,3820.9,1.5262]
[1754586086649,41.8,3821.0,3820.9,1.5262]
[1754586087444,41.8,3821.0,3820.8,0.5233]
[1754586087651,41.8,3821.0,3820.9,1.5262]
[1754586087849,43.2848,3821.0,3820.9,0.5483]
[1754586088047,1.4848,3820.9,3820.8,1.0716]
[1754586088242,0.5288,3820.9,3820.8,2.0495]
[1754586088449,41.8,3821.0,3820.9,1.5262]
[1754586089253,43.2848,3821.0,3820.9,0.9764]
[1754586089756,43.2848,3821.0,3820.9,0.5483]
[1754586090147,2.4917,3820.9,3820.8,1.0716]
[1754586090344,2.4917,3820.9,3820.8,2.5131]
[1754586090555,2.4917,3820.9,3820.8,2.085]
[1754586090756,2.4917,3820.9,3820.8,0.5233]
[1754586091255,2.4917,3820.8,3820.7,2.08501]
[1754586091461,1.9843,3820.8,3820.7,3.06291]
[1754586091644,0.9843,3820.8,3820.7,3.06291]
[1754586091850,1.4917,3820.8,3820.7,0.52331]
[1754586092248,0.5074,3820.1,3820.0,1.62151]
[1754586092751,0.5074,3820.1,3820.0,0.52341]
[1754586093252,0.5074,3820.1,3819.6,1.0981]
[1754586093253,40.8,3820.1,3819.9,0.52342]
[1754586093460,40.8,3820.1,3819.8,0.52343]
[1754586093651,1.4312,3820.0,3819.7,0.52344]
[1754586093855,40.8,3820.1,3819.7,1.07324]
[1754586093856,0.395,3819.8,3819.7,1.07324]
[1754586094050,0.9024,3819.8,3819.7,2.04964]
[1754586094455,40.8,3820.1,3820.0,0.52341]
[1754586094647,40.8,3820.1,3820.0,2.04961]
[1754586096159,0.9024,3820.7,3820.6,2.04953]
[1754586096456,1.4312,3820.7,3820.6,0.52333]
[1754586096754,42.2312,3820.7,3820.6,0.52333]
[1754586097455,41.195,3820.7,3820.6,3.06293]
[1754586097857,41.195,3820.7,3820.6,2.08653]
[1754586097858,42.2312,3820.7,3820.6,2.08653]
[1754586098158,42.2312,3820.7,3820.6,1.71083]
[1754586099255,42.2312,3820.7,3820.3,0.5483]
[1754586099462,1.0069,3820.2,3820.1,0.5234]
[1754586099656,2.4381,3820.2,3820.1,0.5234]
[1754586099854,2.4381,3820.2,3820.1,1.9699]
[1754586100049,2.4381,3820.2,3820.1,2.6349]
[1754586100259,2.4381,3820.2,3820.1,0.5234]
[1754586100461,41.7024,3820.7,3820.6,0.52333]
[1754586100657,42.2312,3820.7,3820.6,0.52333]
[1754586101559,0.395,3820.3,3819.6,1.0981]
[1754586101763,1.0069,3820.2,3820.1,0.5234]
[1754586102058,2.4381,3820.2,3820.1,0.5234]
[1754586103251,43.2381,3820.2,3820.1,0.5234]
[1754586103456,40.8,3820.2,3820.1,2.9952]
[1754586103651,41.6938,3820.2,3820.1,2.9952]
[1754586103861,42.2308,3820.2,3820.1,2.9952]
[1754586104362,42.2308,3820.2,3820.1,0.5234]
[1754586104558,42.2308,3820.2,3820.0,0.5234]
[1754586104756,2.4103,3820.1,3820.0,0.5234]
[1754586105262,2.4103,3820.1,3820.0,2.5569]
[1754586105856,2.4103,3820.1,3820.0,0.5234]
[1754586106661,2.4103,3820.1,3820.0,2.9752]
[1754586107063,40.8,3820.2,3819.5,1.3087]
[1754586107064,2.4103,3820.0,3819.9,0.52342]
[1754586108459,1.9116,3820.0,3819.9,0.52342]
[1754586108660,2.4103,3820.0,3819.9,0.52342]
[1754586109263,2.4103,3820.0,3819.9,2.55692]
[1754586110464,1.8733,3820.0,3819.9,2.97522]
[1754586110664,1.3746,3820.0,3819.9,2.97522]
[1754586110866,1.8733,3820.0,3819.9,2.97522]
[1754586111267,2.4103,3820.0,3819.9,2.97522]
[1754586112062,40.8,3820.2,3820.1,2.5569]
[1754586112368,40.8,3820.2,3820.1,2.9752]
[1754586115977,39.8,3820.2,3820.1,2.9752]
[1754586117069,40.6938,3820.2,3820.1,2.9752]
[1754586117277,41.2308,3820.2,3820.1,2.5569]
[1754586117771,41.2308,3820.2,3820.1,0.5234]
[1754586119880,41.2308,3820.2,3820.0,0.52341]
[1754586120078,2.4103,3820.1,3820.0,0.52341]
[1754586120467,1.525,3820.0,3819.9,0.52342]
[1754586120672,2.4103,3820.0,3819.9,0.52342]
[1754586121074,2.4103,3820.0,3819.9,2.04342]
[1754586121378,2.4103,3820.0,3819.9,2.97522]
[1754586121876,2.4103,3820.0,3819.9,2.55692]
[1754586122277,1.3746,3820.0,3819.9,2.97522]
[1754586123077,1.8733,3820.0,3819.9,2.97522]
[1754586123276,2.4103,3820.0,3819.9,0.52342]
[1754586123773,2.4103,3820.0,3819.9,2.55692]
[1754586123970,2.4103,3820.0,3819.9,2.97522]
[1754586124478,39.8,3820.2,3820.1,2.9752]
[1754586124973,2.4103,3820.9,3820.8,2.9751]
[1754586125175,2.65378895,3820.9,3820.8,2.9751]
[1754586125375,43.2103,3820.9,3820.8,2.9751]
[1754586125573,43.2103,3820.9,3819.9,2.35641321]
[1754586125574,43.4538441,3820.9,3820.0,2.35641321]
[1754586125772,0.52354,3819.1,3818.1,6.09564059]
[1754586125977,18.684,3819.0,3818.1,6.09564059]
[1754586126278,18.92706631,3818.9,3817.5,4.66073932]
[1754586126479,0.52368,3818.1,3816.9,0.94316142]
[1754586126678,0.5237,3817.9,3817.3,0.52378]
[1754586126975,1.3093,3817.8,3816.9,0.94316142]
[1754586127277,1.3093,3817.8,3815.4,4.66073932]
[1754586127278,1.30947,3817.3,3815.4,4.66073932]
[1754586127580,0.52411,3815.0,3814.1,12.6857183]
[1754586127878,0.52417,3814.5,3814.1,12.1614983]
[1754586128083,16.329,3814.4,3813.7,0.52427]
[1754586128279,40.8,3814.2,3813.4,0.5135]
[1754586128478,40.8,3814.2,3813.5,0.5243]
[1754586128685,40.8,3814.2,3813.8,0.52426]
[1754586128986,40.8,3814.2,3813.7,0.52427]
[1754586129175,40.8,3814.2,3813.9,1.4574033]
[1754586129371,40.8,3814.2,3814.1,0.5135]
[1754586129577,40.8,3814.2,3814.0,1.56974]
[1754586129779,40.8,3814.2,3814.1,1.4638]
[1754586129980,40.8,3814.2,3814.1,0.5135]
[1754586130285,40.8,3814.2,3814.1,1.98802]
[1754586130482,18.688,3815.0,3814.9,0.52411]
[1754586130677,18.688,3815.0,3814.9,1.03761]
[1754586130883,0.30851026,3815.0,3814.9,1.03761]
[1754586131182,18.688,3815.2,3815.0,0.5135]
[1754586131379,40.8,3815.1,3814.3,0.5135]
[1754586131681,0.30795146,3815.0,3814.6,0.52415]
[1754586131877,59.494,3815.1,3814.9,0.5135]
[1754586132084,40.8,3815.1,3815.0,1.0376]
[1754586132279,40.8,3815.1,3814.6,0.532]
[1754586132782,40.8,3815.1,3814.6,0.52415]
[1754586132981,0.1142,3815.0,3814.5,0.52417]
[1754586133279,0.0571,3814.9,3814.8,1.10893]
[1754586133680,18.693,3815.0,3814.8,1.70263]
[1754586133876,0.0571,3815.4,3814.9,0.5848]
[1754586134080,40.8,3815.0,3814.9,0.52411]
[1754586134387,0.0571,3814.9,3814.8,0.52412]
[1754586134584,0.0571,3815.3,3815.2,1.10887]
[1754586134780,0.1142,3815.8,3815.7,0.524]
[1754586134974,59.6102,3815.8,3815.7,0.524]
[1754586135181,59.91744918,3815.8,3815.7,0.524]
[1754586135491,41.16434918,3815.8,3815.7,1.1088]
[1754586135781,41.22144918,3815.8,3815.7,0.524]
[1754586135971,0.0571,3815.5,3814.6,1.1785]
[1754586136171,0.1142,3815.2,3814.6,1.1785]
[1754586136377,0.0571,3815.0,3813.4,1.31078]
[1754586136577,0.0571,3814.6,3813.9,1.5287033]
[1754586136790,0.1086,3814.1,3813.9,0.9439033]
[1754586136975,0.52428,3813.8,3813.2,0.52434]
[1754586137278,18.695,3813.7,3812.7,1.10922]
[1754586137479,0.52445,3812.5,3811.9,0.52452]
[1754586137690,18.694,3812.4,3811.5,1.10938]
[1754586137878,0.52453,3812.0,3811.5,0.5848]
[1754586138073,18.698,3812.3,3811.2,0.52462]
[1754586138481,18.698,3812.3,3810.4,0.5937]
[1754586138680,40.8,3812.8,3811.4,0.5246]
[1754586138886,0.52445,3812.5,3811.8,0.52453]
[1754586139077,0.52448,3812.3,3811.7,0.52455]
[1754586139282,0.52446,3812.4,3811.7,0.52455]
[1754586139483,0.72107151,3812.6,3811.2,0.52462]
[1754586139683,0.52445,3812.5,3811.7,0.52455]
[1754586139883,0.72107151,3812.6,3811.7,0.52455]
[1754586140085,0.52444,3812.5,3811.9,0.52453]
[1754586140292,0.52447,3812.3,3811.6,1.10936]
[1754586140490,40.8,3812.8,3812.1,1.1093]
[1754586140680,40.8,3812.8,3812.5,0.52445]
[1754586140886,40.8,3812.8,3812.7,1.70292]
[1754586141288,41.32441,3812.8,3812.4,0.5848]
[1754586141488,41.32441,3812.8,3812.3,0.52447]
[1754586141689,40.8,3812.8,3811.9,0.5848]
[1754586142084,0.52442,3812.7,3812.0,0.52451]
[1754586142297,0.52449,3812.2,3811.5,0.5848]
[1754586142589,19.22751,3812.1,3811.6,0.52456]
[1754586142782,37.748,3813.0,3811.2,0.5937]
[1754586142783,18.703,3812.0,3811.8,0.52453]
[1754586143189,40.8,3811.9,3811.8,1.10933]
[1754586143687,40.8,3811.9,3811.8,2.14993]
[1754586144483,40.8,3811.9,3811.8,0.5848]
[1754586144684,40.8,3811.9,3811.8,1.6254]
[1754586145393,40.8,3811.9,3811.8,1.1785]
[1754586145593,40.8,3811.9,3811.7,0.5937]
[1754586145789,40.8,3811.9,3811.8,1.70304]
[1754586145998,41.10542598,3811.9,3811.8,0.5848]
[1754586146293,41.10542598,3811.9,3811.6,0.52456]
[1754586146494,0.30542399,3811.8,3811.7,0.5848]
[1754586146695,0.30542399,3811.8,3811.7,1.1785]
[1754586146899,0.30542399,3811.8,3811.4,0.4469]
[1754586146900,0.30542399,3811.9,3811.8,2.14994]
[1754586147083,41.10542399,3811.9,3811.8,2.14994]
[1754586147486,18.708,3812.5,3812.4,0.52446]
[1754586147683,37.748,3813.0,3812.9,0.48840229]
[1754586147888,0.52424,3814.0,3812.9,1.1785]
[1754586148196,0.0980089,3813.5,3813.4,1.10911]
[1754586148388,18.8060089,3813.5,3813.4,0.5848]
[1754586148591,59.6060089,3813.5,3813.4,0.5848]
[1754586148784,59.6060089,3813.5,3813.4,1.1785]
[1754586148785,40.8980089,3813.5,3813.4,1.1785]
[1754586148991,59.6050089,3813.5,3813.4,1.6254]
[1754586149691,59.6050089,3813.5,3813.4,1.1785]
[1754586149893,59.6050089,3813.5,3813.4,0.5848]
[1754586150094,59.6050089,3813.5,3813.4,1.1785]
[1754586150792,59.6050089,3813.5,3813.4,0.5848]
[1754586150994,59.6050089,3813.5,3813.4,1.10912]
[1754586151297,59.6050089,3813.5,3813.4,1.70282]
[1754586151794,59.6050089,3813.5,3813.4,1.1785]
[1754586151996,40.8980089,3813.5,3813.4,1.1785]
[1754586152297,59.6040089,3813.5,3813.3,0.52433]
[1754586152497,59.6040089,3813.5,3813.4,0.5848]
[1754586152699,59.6040089,3813.5,3813.0,0.5937]
[1754586152700,0.52432,3813.4,3813.1,0.5848]
[1754586152899,1.24881943,3813.4,3813.2,0.5848]
[1754586153293,0.0980089,3813.3,3813.2,0.5848]
[1754586153492,0.0980089,3813.3,3813.2,1.6254]
[1754586153891,40.8980089,3813.3,3813.2,1.6254]
[1754586154088,18.705,3813.7,3813.4,1.31082]
[1754586154298,37.762,3814.1,3814.0,1.55594]
[1754586154599,0.13408905,3814.1,3814.0,2.14964]
[1754586154794,18.705,3814.9,3814.7,0.52414]
[1754586155000,18.705,3814.9,3814.8,1.1785]
[1754586155195,0.5717,3814.8,3814.6,1.70265]
[1754586155395,1.36818769,3814.7,3814.6,1.70265]
[1754586155600,42.16818769,3814.7,3814.6,2.14955]
[1754586155999,42.16818769,3814.7,3814.6,1.6254]
[1754586156196,41.2377,3814.7,3814.6,1.1785]
[1754586156393,0.134,3814.4,3814.2,0.52421]
[1754586156593,19.1417,3814.3,3814.1,0.52422]
[1754586156797,18.704,3814.3,3814.2,1.6254]
[1754586157397,1.38914655,3814.3,3814.2,1.6254]
[1754586157604,42.18914655,3814.3,3814.2,2.14961]
[1754586157999,42.18914655,3814.3,3814.2,1.6254]
[1754586158198,20.30179485,3814.4,3814.2,2.03496966]
[1754586158504,0.4377,3814.4,3814.3,1.58806966]
[1754586158691,18.703,3814.4,3814.3,2.55916966]
[1754586158892,18.703,3814.4,3814.3,2.03496966]
[1754586159104,20.09323169,3814.4,3814.3,2.03496966]
[1754586159503,19.8586,3814.4,3814.3,0.40956966]
[1754586159700,19.2747,3814.4,3814.3,0.40956966]
[1754586160094,0.5717,3814.4,3814.3,0.40956966]
[1754586160499,0.4377,3814.4,3814.3,1.58806966]
[1754586160702,1.31008,3815.6,3814.3,1.58806966]
[1754586160703,1.39031316,3814.5,3814.3,1.51856966]
[1754586160898,1.39031316,3814.5,3813.3,2.62169]
[1754586160899,18.701,3815.2,3815.1,0.5937]
[1754586161100,18.701,3815.2,3815.1,1.58806966]
[1754586161303,18.701,3815.2,3815.1,2.03496966]
[1754586161900,0.134,3815.7,3815.1,2.03496966]
[1754586161901,1.84930629,3816.2,3816.1,0.4469]
[1754586162103,18.699,3816.7,3816.1,0.85646966]
[1754586162305,18.699,3816.7,3816.3,1.6254]
[1754586162500,18.699,3816.8,3816.4,0.40956966]
[1754586162804,0.52386,3816.9,3816.6,1.0406]
[1754586163008,0.52386,3816.9,3813.3,0.26006428]
[1754586163009,20.2816,3816.8,3816.7,0.40956966]
[1754586163402,19.7267,3816.8,3816.7,0.40956966]
[1754586163600,60.5267,3816.8,3816.7,0.40956966]
[1754586164001,61.0816,3816.8,3816.7,0.40956966]
[1754586164213,1.76499,3816.7,3816.1,0.5654]
[1754586164398,0.52401,3815.8,3815.4,1.1631]
[1754586164707,18.698,3816.2,3815.6,1.5993]
[1754586164902,0.52401,3815.7,3815.6,1.5993]
[1754586165110,0.52406,3815.3,3815.2,1.1631]
[1754586165406,0.52413,3814.8,3814.7,1.1631]
[1754586165804,40.8,3815.3,3814.0,1.31061]
[1754586165997,40.8,3815.3,3815.1,0.4362]
[1754586166197,40.8,3815.3,3815.2,0.35628246]
[1754586166402,40.8,3815.3,3815.2,0.79248246]
[1754586166808,40.8,3815.3,3815.2,1.95558246]
[1754586167106,40.8,3815.3,3815.2,0.35628246]
[1754586167302,60.5217,3815.3,3815.2,0.92168246]
[1754586167603,40.8,3815.3,3815.2,1.95558246]
[1754586168598,0.52399,3815.9,3815.6,1.0339]
[1754586168807,0.52399,3815.9,3815.5,0.52404]
[1754586168808,0.68624062,3815.8,3815.7,1.95558246]
[1754586169005,1.21023062,3815.8,3815.7,1.95558246]
[1754586169206,1.90601507,3815.8,3815.7,1.39018246]
[1754586169404,2.47941507,3815.8,3815.7,0.35628246]
[1754586169605,61.97041507,3815.8,3815.7,0.35628246]
[1754586169803,61.39701507,3815.8,3815.7,0.95398246]
[1754586170001,42.25071507,3815.8,3815.7,1.39018246]
[1754586170297,41.17182507,3815.8,3815.7,1.95558246]
[1754586170708,42.18202507,3815.8,3815.7,0.95398246]
[1754586171307,42.75542507,3815.8,3815.7,0.35628246]
[1754586171808,42.18202507,3815.8,3815.7,0.35628246]
[1754586172203,42.18202507,3815.8,3815.7,0.95398246]
[1754586172416,41.8102,3815.8,3815.7,0.95398246]
[1754586172616,41.8102,3815.8,3815.7,0.35628246]
[1754586172912,42.3836,3815.8,3815.7,0.35628246]
[1754586173408,1.53421,3815.7,3815.5,0.5977]
[1754586173610,0.4553,3815.5,3815.3,0.52405]
[1754586173799,1.0102,3815.4,3815.3,1.12175]
[1754586174110,1.5836,3815.4,3814.8,0.52413]
[1754586174411,1.0287,3814.6,3813.9,0.5977]
[1754586174707,1.0287,3814.2,3814.0,0.52423]
[1754586174906,0.5549,3814.1,3814.0,1.12193]
[1754586175107,0.52417,3814.5,3814.2,0.5242]
[1754586175304,1.0102,3814.4,3813.8,0.5977]
[1754586175508,18.688,3814.5,3814.4,0.52419]
[1754586175709,19.2429,3814.5,3814.4,0.96039]
[1754586175908,19.2429,3814.5,3814.4,0.4362]
[1754586176212,0.52412,3815.0,3814.9,1.0339]
[1754586176402,0.4553,3815.4,3814.9,1.0339]
[1754586176604,19.21207,3815.3,3815.1,1.0339]
[1754586176911,0.5549,3815.0,3814.9,1.55801]
[1754586177211,0.5549,3815.0,3814.5,0.52417]
[1754586177212,0.5549,3814.6,3814.5,0.52417]
[1754586177408,1.0102,3814.9,3814.8,1.12183]
[1754586177711,0.5549,3814.9,3814.8,1.55803]
[1754586178212,1.5836,3814.9,3814.5,0.52417]
[1754586178411,2.10774,3814.7,3814.5,0.52416]
[1754586178711,0.5549,3814.5,3814.4,0.52417]
[1754586179010,1.0102,3814.5,3814.4,0.52417]
[1754586179207,0.5549,3814.3,3814.2,1.1219]
[1754586179601,0.5549,3814.3,3814.2,1.5581]
[1754586180106,1.5836,3814.1,3814.0,0.52424]
[1754586180310,1.0102,3814.0,3813.9,1.12195]
[1754586180716,1.0102,3814.0,3813.9,0.5977]
[1754586180909,1.5836,3814.0,3813.7,0.52427]
[1754586181112,1.0102,3813.9,3813.8,1.12196]
[1754586181414,1.0102,3814.1,3814.0,0.5977]
[1754586181614,1.09764,3814.1,3813.9,0.52425]
[1754586181810,1.24051057,3814.4,3814.3,0.5242]
[1754586182112,1.0791,3814.4,3814.3,0.5977]
[1754586182315,0.5549,3814.4,3814.3,0.5977]
[1754586182511,1.1283,3815.0,3814.8,0.52413]
[1754586182716,0.68647774,3815.2,3815.1,0.5977]
[1754586182914,0.68647774,3815.2,3815.0,0.96029]
[1754586182915,0.68647774,3815.2,3815.0,0.5241]
[1754586183219,1.24137774,3815.1,3815.0,1.558]
[1754586183417,0.5549,3815.1,3815.0,1.558]
[1754586183614,1.24196682,3815.4,3815.3,1.12176]
[1754586183814,1.24196682,3815.4,3815.3,1.55796]
[1754586184011,42.04196682,3815.4,3815.3,1.55796]
[1754586184211,42.04196682,3815.4,3814.7,1.87576]
[1754586184212,1.5836,3815.3,3815.2,0.52408]
[1754586184408,2.27113576,3815.3,3815.2,0.52408]
[1754586184613,1.5836,3815.2,3814.4,0.5977]
[1754586184919,1.5836,3815.0,3814.9,0.52411]
[1754586185113,1.0102,3815.0,3814.9,0.52411]
[1754586185412,0.5549,3815.0,3814.9,1.55801]
[1754586185616,42.9077,3815.0,3814.9,0.52411]
[1754586185815,42.3836,3815.0,3814.9,0.52411]
[1754586186005,42.3836,3815.0,3814.7,0.52414]
[1754586186006,1.5836,3814.9,3814.7,0.52414]
[1754586186206,1.0102,3814.8,3814.7,0.52414]
[1754586186410,19.2439,3815.2,3815.1,0.52409]
[1754586186616,1.5836,3815.1,3815.0,0.5241]
[1754586186818,43.07112753,3815.1,3815.0,0.5241]
[1754586188213,41.74850493,3815.1,3815.0,1.1218]
[1754586188413,40.8,3815.1,3815.0,2.1234]
[1754586188917,41.3549,3815.1,3815.0,0.5241]
[1754586189119,42.3836,3815.1,3815.0,0.5241]
[1754586189812,1.31027,3815.0,3814.0,0.5977]
[1754586190011,1.5836,3814.8,3814.7,0.52415]
[1754586190212,1.0102,3814.8,3814.7,1.12185]
[1754586190411,0.5549,3814.8,3814.7,1.55805]
[1754586191319,40.8,3815.1,3815.0,1.0339]
[1754586191720,40.8,3815.1,3815.0,1.5993]
[1754586192215,18.687,3815.7,3815.6,0.52402]
[1754586192517,0.5549,3815.9,3815.8,0.52399]
[1754586192720,0.5549,3815.9,3815.8,1.55789]
[1754586192919,0.79104491,3815.9,3815.8,1.55789]
[1754586193119,0.7911264,3815.9,3815.8,1.55789]
[1754586193319,1.5487,3815.9,3815.8,1.55789]
[1754586193522,41.3549,3815.9,3815.8,1.55789]
[1754586194016,42.3487,3815.9,3815.8,0.52399]
[1754586194222,1.576,3815.8,3815.2,1.86429]
[1754586194420,41.32399,3815.9,3815.2,1.86429]
[1754586194623,40.8,3815.9,3815.7,0.524]
[1754586194918,0.5822,3815.8,3815.7,0.524]
[1754586195121,40.8,3815.9,3815.7,2.1003]
[1754586195317,40.8,3815.9,3815.8,1.5763]
[1754586196823,40.8,3815.9,3815.7,0.524]
[1754586196824,0.5822,3815.8,3815.7,1.5243]
[1754586198018,1.576,3815.8,3815.7,0.524]
[1754586198625,40.8,3815.9,3815.8,1.5763]
[1754586199023,0.5822,3816.8,3816.7,1.52417]
[1754586199724,0.36477,3817.0,3816.9,2.10014]
[1754586199926,1.39282814,3818.4,3817.9,0.6466]
[1754586200230,0.52366,3818.2,3818.0,0.6466]
[1754586200431,41.2513,3818.1,3818.0,0.5541]
[1754586200628,43.28304469,3818.1,3818.0,0.5541]
[1754586200828,0.5822,3817.7,3817.1,1.0779]
[1754586201031,0.9938,3817.6,3817.1,0.6466]
[1754586201224,0.5238,3817.2,3817.1,0.5541]
[1754586201425,0.5238,3817.2,3816.3,0.5541]
[1754586201426,1.1247,3816.9,3816.3,0.5541]
[1754586201621,0.5822,3816.4,3816.3,0.5541]
[1754586201822,0.52393,3816.3,3816.0,0.0925]
[1754586202025,0.5822,3816.2,3816.1,0.5541]
[1754586202429,0.52397,3816.0,3815.9,0.576]
[1754586202739,1.51781,3815.7,3815.6,1.1301]
[1754586203633,42.31781,3815.7,3815.6,1.1301]
[1754586203832,41.2513,3815.7,3815.6,1.1301]
[1754586204032,40.8,3815.7,3815.6,1.2226]
[1754586205929,0.97536,3815.3,3815.2,1.1301]
[1754586206236,0.52413,3814.9,3814.8,0.576]
[1754586206732,2.10011,3815.0,3814.8,0.5541]
[1754586206922,1.576,3814.6,3814.1,38.8631]
[1754586207126,41.2513,3814.5,3814.3,0.0925]
[1754586207432,1.10641,3814.3,3814.0,0.6685]
[1754586207627,40.8,3814.5,3814.4,0.6685]
[1754586207931,40.8,3814.5,3814.4,1.2226]
[1754586209630,0.9938,3815.5,3815.4,0.52405]
[1754586210035,0.9938,3815.5,3815.4,1.10005]
[1754586210334,1.576,3815.7,3815.4,1.2237]
[1754586210533,0.9938,3815.6,3815.4,1.2237]
[1754586210731,40.8,3815.5,3815.4,1.74775]
[1754586210932,41.2513,3815.5,3815.4,1.10005]
[1754586211128,41.7938,3815.5,3815.4,1.10005]
[1754586211533,42.376,3815.5,3815.4,1.10005]
[1754586211739,40.8,3815.5,3814.9,0.576]
[1754586211945,1.576,3815.1,3814.3,0.52419]
[1754586212242,0.52414,3814.8,3814.5,0.52416]
[1754586212435,1.576,3814.7,3814.6,0.52415]
[1754586212935,19.20313,3814.9,3814.7,1.07824]
[1754586213140,42.376,3814.8,3814.7,0.52414]
[1754586213642,40.8,3814.8,3814.7,1.65424]
[1754586213842,40.8,3814.8,3814.7,1.74784]
[1754586215043,40.8,3814.8,3814.7,0.52414]
[1754586215234,40.8,3814.8,3814.7,1.74784]
[1754586215538,19.8037,3815.3,3814.7,1.74784]
[1754586215539,1.576,3816.0,3815.9,0.52398]
[1754586215740,1.576,3815.9,3815.3,0.576]
[1754586216042,1.576,3815.7,3815.6,0.52401]
[1754586216540,42.376,3815.7,3815.6,0.52401]
[1754586216742,41.7938,3815.7,3815.6,0.52401]
[1754586216936,40.8,3815.7,3815.6,1.74771]
[1754586217240,42.376,3815.7,3815.6,0.52401]
[1754586217829,42.376,3815.7,3815.6,1.10001]
[1754586218230,42.376,3815.7,3815.6,0.52401]
[1754586222641,40.8,3815.7,3815.6,1.74771]
[1754586223143,1.576,3816.6,3816.5,0.5239]
[1754586223439,1.576,3816.6,3816.5,1.0689]
[1754586223640,0.5822,3816.6,3816.5,1.0689]
[1754586223844,0.583,3817.0,3816.9,0.52383]
[1754586224146,42.3588,3817.0,3816.9,0.52383]
[1754586224333,42.3588,3817.0,3816.2,0.545]
[1754586224334,1.5588,3816.8,3816.2,0.545]
[1754586224537,1.5588,3816.8,3816.7,0.52387]
[1754586225743,1.5588,3816.8,3816.7,1.06887]
[1754586226238,40.8,3817.0,3816.9,1.63704]
[1754586226646,41.3638,3817.0,3816.9,1.06884]
[1754586226841,41.7758,3817.0,3816.9,1.06884]
[1754586227548,1.5588,3816.8,3816.7,0.52386]
[1754586228236,1.5588,3816.7,3816.5,0.52389]
[1754586228443,0.995,3816.6,3816.5,0.52389]
[1754586228639,1.5588,3816.6,3816.5,0.52389]
[1754586229134,42.3588,3816.6,3816.4,0.5239]
[1754586229340,42.3588,3816.6,3816.1,1.85488]
[1754586229341,1.5588,3816.5,3816.3,0.52392]
[1754586229535,0.995,3816.5,3816.4,0.5239]
[1754586229739,1.5588,3816.4,3816.3,0.52392]
[1754586230345,0.9758,3816.4,3816.3,1.06892]
[1754586230644,40.8,3816.6,3816.5,1.0689]
[1754586231545,1.5588,3816.5,3815.8,1.30999]
[1754586231946,20.2298,3816.5,3815.7,1.85502]
[1754586232244,1.5588,3816.2,3815.4,1.1132]
[1754586232438,18.671,3816.2,3815.8,0.52399]
[1754586232756,18.671,3816.2,3816.0,0.52396]
[1754586232943,18.671,3816.3,3816.0,0.52396]
[1754586233237,18.671,3816.3,3815.7,0.545]
[1754586233942,0.9758,3815.5,3814.6,0.545]
[1754586234244,1.5588,3815.4,3814.6,1.8554]
[1754586234444,18.67,3815.6,3815.2,0.52407]
[1754586234742,0.5638,3815.6,3815.5,0.52404]
[1754586234940,18.67,3816.0,3815.7,0.545]
[1754586235141,0.9758,3815.9,3815.1,0.5682]
[1754586235348,0.9758,3815.8,3815.2,0.545]
[1754586235545,20.2278,3816.4,3815.5,0.545]
[1754586235746,1.5588,3816.2,3815.9,0.52397]
[1754586236047,0.93594,3816.2,3815.8,0.52398]
[1754586236243,18.669,3816.4,3816.0,0.52396]
[1754586236441,1.1468,3816.2,3816.0,0.52396]
[1754586236641,1.1468,3816.2,3815.0,1.31024]
[1754586236642,0.5638,3816.0,3815.7,0.52401]
[1754586236842,40.8,3815.9,3815.8,0.524]
[1754586237550,40.8,3815.9,3815.8,1.6372]
[1754586238643,41.3638,3815.9,3815.8,1.069]
[1754586238838,42.3588,3815.9,3815.8,0.524]
[1754586239041,1.5588,3815.8,3815.1,1.31024]
[1754586239247,40.8,3815.9,3815.6,0.52401]
[1754586239447,1.5588,3815.7,3815.6,0.52401]
[1754586239746,0.5638,3815.7,3815.6,1.06901]
[1754586239950,1.5588,3815.7,3815.3,0.52405]
[1754586240140,1.5588,3815.8,3815.5,0.52403]
[1754586240345,1.5588,3815.7,3815.6,0.52401]
[1754586240648,0.5638,3815.7,3815.6,1.06901]
[1754586240844,0.995,3815.6,3815.4,0.52405]
[1754586241046,19.19203,3815.6,3815.2,0.52407]
[1754586241245,1.5588,3815.5,3815.2,0.52407]
[1754586241441,0.52406,3815.4,3814.5,1.31042]
[1754586241651,18.668,3815.3,3814.8,0.52412]
[1754586241843,0.52413,3814.9,3814.1,0.545]